[Event "2nd Turkish League 2017"]
[Site "Konya"]
[Date "2017.07.18"]
[Round "3"]
[White "Ozturk, Emir"]
[Black "Demirag, Batuhan"]
[Result "1-0"]
[ECO "A61"]
[WhiteElo "2202"]
[BlackElo "1914"]
[Annotator "NA"]
[PlyCount "63"]
[EventType "team-tourn"]
[EventCountry "TUR"]
[SourceTitle "playchess.com"]
[Source "ChessBase"]
[SourceQuality "1"]
[TimeControl "5400+30"]

1. d4 {[%emt 0:00:30]} Nf6 {[%emt 0:01:00]} 2. c4 {[%emt 0:00:30]} c5 {[%emt 0:00:30]} 3. d5 {[%emt 0:00:30]} e6 {[%emt 0:00:00]} 4. Nc3 {[%emt 0:00:00]} exd5 {[%emt 0:00:00]} 5. cxd5 {[%emt 0:00:00]} d6 {[%emt 0:00:30]} 6. Nf3 {[%emt 0:00:00]} g6 {[%emt 0:00:00]} 7. Bf4 {[%emt 0:00:00]} Bg7 {[%emt 0:01:00]} 8. Qa4+ {[%emt 0:02:30]} Kf8 {[%emt 0:06:30]} 9. Qd1 {[%emt 0:11:30]} h6 {[%emt 0:03:30]} 10. e4 {[%emt 0:03:30]} Nh5 {[%emt 0:02:30]} 11. Be3 {[%emt 0:00:30]} Nd7 {[%emt 0:10:30]} 12. Be2 {[%emt 0:06:30]} a6 {[%emt 0:07:30]} 13. a4 {[%emt 0:00:30]} Qe7 {[%emt 0:01:30]} 14. Nd2 {[%emt 0:01:30]} Bxc3 {[%emt 0:02:30]} 15. bxc3 {[%emt 0:00:30]} Nhf6 {[%emt 0:00:30]} 16. Qc2 {[%emt 0:09:30]} Kg7 {[%emt 0:00:30]} 17. c4 {[%emt 0:00:30]} Re8 {[%emt 0:05:30]} 18. f3 {[%emt 0:01:30]} Ne5 {[%emt 0:04:30]} 19. Rb1 {[%emt 0:07:30]} Nh5 {[%emt 0:08:30]} 20. g4 {[%emt 0:06:30]} Nf6 {[%emt 0:00:30]} 21. h3 {[%emt 0:01:30]} g5 {[%emt 0:09:30]} 22. Nf1 {[%emt 0:02:30]} Ng6 {[%emt 0:01:30]} 23. Bd2 {[%emt 0:02:30]} Kg8 {[%emt 0:04:30]} 24. Bc3 {[%emt 0:00:30]} Nd7 {[%emt 0:02:30]} 25. Ng3 {[%emt 0:03:30]} Nde5 {[%emt 0:00:30]} 26. Kf2 {[%emt 0:00:30]} Nf4 {[%emt 0:01:30]} 27. Bd2 {[%emt 0:02:30]} Nfg6 {[%emt 0:04:30]} 28. Nh5 {[%emt 0:00:30]} Ra7 {[%emt 0:03:03]} 29. Kg3 {[%emt 0:06:30]} Ra8 {[%emt 0:02:00]} 30. Qc3 {[%emt 0:01:30]} Ra7 {[%emt 0:02:13]} 31. Rb6 {[%emt 0:00:30]} Nd7 {[%emt 0:01:43]} 32. Qg7# {[%emt 0:00:30]} 1-0

[Event "2nd Turkish League 2017"]
[Site "Konya"]
[Date "2017.07.18"]
[Round "3"]
[White "Eren, Baran"]
[Black "Kuruz, Yusuf"]
[Result "1/2-1/2"]
[ECO "A36"]
[WhiteElo "2143"]
[BlackElo "1906"]
[Annotator "NA"]
[PlyCount "45"]
[EventType "team-tourn"]
[EventCountry "TUR"]
[SourceTitle "playchess.com"]
[Source "ChessBase"]
[SourceQuality "1"]
[TimeControl "5400+30"]

1. c4 {[%emt 0:00:30]} Nf6 {[%emt 0:02:00]} 2. g3 {[%emt 0:00:00]} g6 {[%emt 0:00:30]} 3. Bg2 {[%emt 0:00:00]} Bg7 {[%emt 0:00:30]} 4. Nc3 {[%emt 0:00:00]} O-O {[%emt 0:00:30]} 5. d3 {[%emt 0:00:00]} c5 {[%emt 0:03:30]} 6. a3 {[%emt 0:00:30]} Nc6 {[%emt 0:00:30]} 7. Rb1 {[%emt 0:02:30]} a5 {[%emt 0:07:30]} 8. e4 {[%emt 0:00:00]} d6 {[%emt 0:01:30]} 9. Nge2 {[%emt 0:00:00]} e5 {[%emt 0:01:30]} 10. O-O {[%emt 0:00:30]} Nh5 {[%emt 0:03:30]} 11. f4 {[%emt 0:03:30]} exf4 {[%emt 0:02:30]} 12. Nxf4 {[%emt 0:01:30]} Nxf4 {[%emt 0:01:30]} 13. Bxf4 {[%emt 0:00:30]} Nd4 {[%emt 0:06:30]} 14. Kh1 {[%emt 0:04:30]} Be6 {[%emt 0:04:30]} 15. Be3 {[%emt 0:15:30]} Qd7 {[%emt 0:03:30]} 16. Bxd4 {[%emt 0:00:30]} Bxd4 {[%emt 0:00:00]} 17. Ne2 {[%emt 0:01:30]} Bg4 {[%emt 0:04:00]} 18. Bf3 {[%emt 0:00:30]} Bh3 {[%emt 0:00:00]} 19. Bg2 {[%emt 0:00:00]} Bg4 {[%emt 0:00:00]} 20. Bf3 {[%emt 0:00:00]} Bh3 {[%emt 0:01:30]} 21. Bg2 {[%emt 0:00:30]} Bg4 {[%emt 0:00:30]} 22. Qd2 {[%emt 0:00:00]} Bh3 {[%emt 0:00:30]} 23. Qd1 {[%emt 0:00:00]} 1/2-1/2

[Event "2nd Turkish League 2017"]
[Site "Konya"]
[Date "2017.07.18"]
[Round "3"]
[White "Bayrak, Asli"]
[Black "Karagulle, Hulya"]
[Result "1-0"]
[ECO "B22"]
[WhiteElo "2056"]
[BlackElo "1476"]
[Annotator "NA"]
[PlyCount "55"]
[EventType "team-tourn"]
[EventCountry "TUR"]
[SourceTitle "playchess.com"]
[Source "ChessBase"]
[SourceQuality "1"]
[TimeControl "5400+30"]

1. e4 {[%emt 0:00:30]} c5 {[%emt 0:01:00]} 2. c3 {[%emt 0:00:00]} d6 {[%emt 0:02:30]} 3. d4 {[%emt 0:01:00]} cxd4 {[%emt 0:00:30]} 4. cxd4 {[%emt 0:00:00]} a6 {[%emt 0:00:30]} 5. Nf3 {[%emt 0:00:00]} g6 {[%emt 0:00:30]} 6. Bc4 {[%emt 0:04:30]} e6 {[%emt 0:01:30]} 7. O-O {[%emt 0:00:30]} Bg7 {[%emt 0:00:00]} 8. Nc3 {[%emt 0:01:30]} Ne7 {[%emt 0:00:00]} 9. Be3 {[%emt 0:01:30]} O-O {[%emt 0:03:30]} 10. Qd2 {[%emt 0:00:00]} Nd7 {[%emt 0:00:30]} 11. Bh6 {[%emt 0:01:00]} b5 {[%emt 0:01:30]} 12. Bb3 {[%emt 0:01:30]} Bb7 {[%emt 0:00:30]} 13. Bxg7 {[%emt 0:01:30]} Kxg7 {[%emt 0:00:30]} 14. Qf4 {[%emt 0:03:30]} b4 {[%emt 0:07:30]} 15. Nd1 {[%emt 0:01:30]} d5 {[%emt 0:00:30]} 16. e5 {[%emt 0:01:30]} Rc8 {[%emt 0:02:30]} 17. Ne3 {[%emt 0:01:30]} a5 {[%emt 0:09:30]} 18. Rac1 {[%emt 0:10:30]} Ng8 {[%emt 0:01:30]} 19. h4 {[%emt 0:03:30]} f6 {[%emt 0:05:30]} 20. exf6+ {[%emt 0:02:30]} Ndxf6 {[%emt 0:02:30]} 21. Qe5 {[%emt 0:01:30]} Rxc1 {[%emt 0:10:30]} 22. Rxc1 {[%emt 0:01:30]} Bc8 {[%emt 0:00:30]} 23. g4 {[%emt 0:01:30]} Kf7 {[%emt 0:00:30]} 24. Ng5+ {[%emt 0:01:30]} Ke7 {[%emt 0:01:30]} 25. Rc7+ {[%emt 0:01:30]} Ke8 {[%emt 0:01:30]} 26. Ba4+ {[%emt 0:00:00]} Nd7 {[%emt 0:00:30]} 27. Qxe6+ {[%emt 0:00:00]} Ne7 {[%emt 0:00:30]} 28. Nxd5 {[%emt 0:00:30]} 1-0

[Event "2nd Turkish League 2017"]
[Site "Konya"]
[Date "2017.07.18"]
[Round "3"]
[White "Yalim, Suleyman"]
[Black "Akca, Gani Eren"]
[Result "0-1"]
[ECO "C93"]
[WhiteElo "2039"]
[BlackElo "2158"]
[Annotator "NA"]
[PlyCount "64"]
[EventType "team-tourn"]
[EventCountry "TUR"]
[SourceTitle "playchess.com"]
[Source "ChessBase"]
[SourceQuality "1"]
[TimeControl "5400+30"]

1. e4 {[%emt 0:00:30]} e5 {[%emt 0:01:00]} 2. Nf3 {[%emt 0:00:00]} Nc6 {[%emt 0:00:00]} 3. Bb5 {[%emt 0:00:00]} a6 {[%emt 0:00:00]} 4. Ba4 {[%emt 0:00:30]} Nf6 {[%emt 0:00:30]} 5. O-O {[%emt 0:00:30]} Be7 {[%emt 0:00:30]} 6. Re1 {[%emt 0:00:00]} b5 {[%emt 0:00:00]} 7. Bb3 {[%emt 0:00:00]} d6 {[%emt 0:00:00]} 8. c3 {[%emt 0:00:00]} O-O {[%emt 0:00:30]} 9. h3 {[%emt 0:00:00]} Bb7 {[%emt 0:00:00]} 10. d4 {[%emt 0:00:30]} Re8 {[%emt 0:00:00]} 11. Ng5 {[%emt 0:02:30]} Rf8 {[%emt 0:00:30]} 12. Nf3 {[%emt 0:00:30]} h6 {[%emt 0:00:30]} 13. Nbd2 {[%emt 0:00:30]} Re8 {[%emt 0:00:30]} 14. Nf1 {[%emt 0:00:30]} Bf8 {[%emt 0:03:30]} 15. Ng3 {[%emt 0:02:30]} Na5 {[%emt 0:02:30]} 16. Bc2 {[%emt 0:00:30]} Nc4 {[%emt 0:05:30]} 17. a4 {[%emt 0:04:30]} d5 {[%emt 0:17:30]} 18. axb5 {[%emt 0:22:30]} axb5 {[%emt 0:05:30]} 19. Rxa8 {[%emt 0:00:30]} Qxa8 {[%emt 0:00:30]} 20. dxe5 {[%emt 0:16:30]} Nxe4 {[%emt 0:02:30]} 21. Nf5 {[%emt 0:08:30]} Qa6 {[%emt 0:16:30]} 22. N5d4 {[%emt 0:10:30]} c5 {[%emt 0:14:30]} 23. Nb3 {[%emt 0:05:30]} Qa2 {[%emt 0:06:30]} 24. Re2 {[%emt 0:04:30]} Qa8 {[%emt 0:08:43]} 25. Nbd2 {[%emt 0:01:35]} Nexd2 {[%emt 0:02:29]} 26. Bxd2 {[%emt 0:07:49]} d4 {[%emt 0:01:28]} 27. e6 {[%emt 0:07:04]} fxe6 {[%emt 0:05:46]} 28. Bf4 {[%emt 0:03:22]} Nxb2 {[%emt 0:00:30]} 29. Qb1 {[%emt 0:00:30]} Bxf3 {[%emt 0:01:16]} 30. Bh7+ {[%emt 0:02:01]} Kh8 {[%emt 0:00:08]} 31. Qg6 {[%emt 0:00:34]} Bxe2 {[%emt 0:03:08]} 32. Be5 {[%emt 0:00:32]} Bd3 {[%emt 0:00:24]} 0-1

[Event "2nd Turkish League 2017"]
[Site "Konya"]
[Date "2017.07.18"]
[Round "3"]
[White "Yasin, Hur"]
[Black "Kutlu, Sedat"]
[Result "1-0"]
[ECO "C43"]
[WhiteElo "2022"]
[BlackElo "1824"]
[Annotator "NA"]
[PlyCount "117"]
[EventType "team-tourn"]
[EventCountry "TUR"]
[SourceTitle "playchess.com"]
[Source "ChessBase"]
[SourceQuality "1"]
[TimeControl "5400+30"]

1. e4 {[%emt 0:00:30]} e5 {[%emt 0:01:00]} 2. Nf3 {[%emt 0:00:30]} Nf6 {[%emt 0:00:00]} 3. d4 {[%emt 0:00:30]} exd4 {[%emt 0:00:00]} 4. e5 {[%emt 0:00:30]} Ne4 {[%emt 0:00:30]} 5. Qxd4 {[%emt 0:04:30]} d5 {[%emt 0:00:00]} 6. exd6 {[%emt 0:00:30]} Nxd6 {[%emt 0:00:00]} 7. Bg5 {[%emt 0:00:30]} f6 {[%emt 0:03:30]} 8. Bf4 {[%emt 0:01:30]} Nc6 {[%emt 0:00:00]} 9. Qd2 {[%emt 0:05:30]} Qe7+ {[%emt 0:03:00]} 10. Be2 {[%emt 0:06:30]} Bg4 {[%emt 0:03:30]} 11. O-O {[%emt 0:01:30]} O-O-O {[%emt 0:00:00]} 12. Re1 {[%emt 0:06:30]} Ne4 {[%emt 0:20:00]} 13. Qc1 {[%emt 0:06:30]} Qc5 {[%emt 0:02:30]} 14. Be3 {[%emt 0:01:30]} Qh5 {[%emt 0:02:30]} 15. h3 {[%emt 0:02:30]} Bd7 {[%emt 0:08:30]} 16. Ng5 {[%emt 0:07:30]} Qe8 {[%emt 0:01:30]} 17. Nxe4 {[%emt 0:00:30]} Qxe4 {[%emt 0:00:30]} 18. Nd2 {[%emt 0:00:30]} Qg6 {[%emt 0:00:30]} 19. Bd3 {[%emt 0:07:30]} Bf5 {[%emt 0:03:30]} 20. Bxf5+ {[%emt 0:01:30]} Qxf5 {[%emt 0:00:00]} 21. c3 {[%emt 0:05:30]} Ne5 {[%emt 0:04:00]} 22. Qb1 {[%emt 0:01:30]} Nd3 {[%emt 0:02:30]} 23. Nf3 {[%emt 0:00:30]} Bc5 {[%emt 0:03:30]} 24. Qc2 {[%emt 0:13:30]} Qh5 {[%emt 0:08:30]} 25. Red1 {[%emt 0:03:30]} Bxe3 {[%emt 0:00:30]} 26. Rxd3 {[%emt 0:02:00]} Rxd3 {[%emt 0:04:30]} 27. Qxd3 {[%emt 0:00:12]} Bc5 {[%emt 0:02:30]} 28. Rd1 {[%emt 0:01:08]} Bd6 {[%emt 0:00:30]} 29. b4 {[%emt 0:00:46]} Rd8 {[%emt 0:01:30]} 30. Qe2 {[%emt 0:04:52]} Re8 {[%emt 0:00:30]} 31. Qc4 {[%emt 0:00:59]} Kb8 {[%emt 0:01:30]} 32. a4 {[%emt 0:00:14]} Qf5 {[%emt 0:04:30]} 33. a5 {[%emt 0:02:08]} a6 {[%emt 0:04:25]} 34. Nd4 {[%emt 0:01:53]} Qe5 {[%emt 0:01:19]} 35. g3 {[%emt 0:00:15]} h5 {[%emt 0:00:20]} 36. Nf3 {[%emt 0:02:13]} Qf5 {[%emt 0:02:30]} 37. Kg2 {[%emt 0:00:41]} g5 {[%emt 0:00:05]} 38. Qf7 {[%emt 0:01:04]} Re2 {[%emt 0:03:40]} 39. Qxh5 {[%emt 0:00:54]} Qc2 {[%emt 0:00:43]} 40. Rd2 {[%emt 0:00:56]} Rxd2 {[%emt 0:00:30]} 41. Qe8+ {[%emt 0:00:30]} Ka7 {[%emt 0:01:11]} 42. Qe3+ {[%emt 0:00:00]} Kb8 {[%emt 0:03:38]} 43. Qxd2 {[%emt 0:00:26]} Qe4 {[%emt 0:01:03]} 44. Qd4 {[%emt 0:00:24]} Qg6 {[%emt 0:02:23]} 45. Qe3 {[%emt 0:02:05]} Qf5 {[%emt 0:02:24]} 46. Nd4 {[%emt 0:01:06]} Qd5+ {[%emt 0:01:07]} 47. Qf3 {[%emt 0:02:21]} Qe5 {[%emt 0:00:08]} 48. Qf5 {[%emt 0:00:45]} Qe7 {[%emt 0:02:23]} 49. Qe6 {[%emt 0:00:31]} Qxe6 {[%emt 0:00:07]} 50. Nxe6 {[%emt 0:00:30]} Be5 {[%emt 0:00:00]} 51. Nd4 {[%emt 0:00:01]} Kc8 {[%emt 0:00:54]} 52. Kf3 {[%emt 0:00:26]} Kd7 {[%emt 0:00:12]} 53. Ke4 {[%emt 0:00:19]} Kd6 {[%emt 0:00:30]} 54. f4 {[%emt 0:00:35]} Bxd4 {[%emt 0:02:16]} 55. Kxd4 {[%emt 0:00:17]} Ke6 {[%emt 0:00:07]} 56. fxg5 {[%emt 0:01:54]} fxg5 {[%emt 0:00:08]} 57. c4 {[%emt 0:01:01]} Kf6 {[%emt 0:00:47]} 58. Kd5 {[%emt 0:00:21]} Kf5 {[%emt 0:00:13]} 59. b5 {[%emt 0:00:49]} 1-0

[Event "2nd Turkish League 2017"]
[Site "Konya"]
[Date "2017.07.18"]
[Round "3"]
[White "Alaz, Ahmet Efekan"]
[Black "Ozgur, Isa"]
[Result "1/2-1/2"]
[ECO "A47"]
[WhiteElo "2015"]
[BlackElo "1904"]
[Annotator "NA"]
[PlyCount "46"]
[EventType "team-tourn"]
[EventCountry "TUR"]
[SourceTitle "playchess.com"]
[Source "ChessBase"]
[SourceQuality "1"]
[TimeControl "5400+30"]

1. d4 {[%emt 0:00:30]} Nf6 {[%emt 0:01:00]} 2. Nf3 {[%emt 0:00:30]} c5 {[%emt 0:00:30]} 3. e3 {[%emt 0:00:00]} g6 {[%emt 0:03:30]} 4. c3 {[%emt 0:01:00]} b6 {[%emt 0:02:30]} 5. Nbd2 {[%emt 0:00:30]} Bg7 {[%emt 0:01:30]} 6. Bd3 {[%emt 0:00:30]} Bb7 {[%emt 0:00:30]} 7. O-O {[%emt 0:00:30]} O-O {[%emt 0:00:00]} 8. Re1 {[%emt 0:01:30]} d5 {[%emt 0:01:00]} 9. a4 {[%emt 0:02:30]} Nc6 {[%emt 0:01:30]} 10. Rb1 {[%emt 0:05:30]} a5 {[%emt 0:06:30]} 11. Ne5 {[%emt 0:09:30]} Nxe5 {[%emt 0:06:30]} 12. dxe5 {[%emt 0:00:30]} Ne4 {[%emt 0:00:00]} 13. f4 {[%emt 0:01:30]} Nxd2 {[%emt 0:05:00]} 14. Bxd2 {[%emt 0:01:30]} f6 {[%emt 0:01:30]} 15. exf6 {[%emt 0:03:30]} Bxf6 {[%emt 0:04:30]} 16. Qg4 {[%emt 0:15:30]} Qd6 {[%emt 0:06:30]} 17. Rbd1 {[%emt 0:04:30]} e5 {[%emt 0:04:30]} 18. Bxg6 {[%emt 0:06:30]} hxg6 {[%emt 0:00:30]} 19. Qxg6+ {[%emt 0:00:30]} Kh8 {[%emt 0:00:00]} 20. Qh6+ {[%emt 0:04:30]} Kg8 {[%emt 0:00:00]} 21. Qg6+ {[%emt 0:02:30]} Kh8 {[%emt 0:00:30]} 22. Qh6+ {[%emt 0:00:00]} Kg8 {[%emt 0:00:30]} 23. Qg6+ {[%emt 0:00:00]} Kh8 {[%emt 0:00:30]} 1/2-1/2

[Event "2nd Turkish League 2017"]
[Site "Konya"]
[Date "2017.07.18"]
[Round "3"]
[White "Okay, Ilkin Ege"]
[Black "Doner, Mustafa"]
[Result "1-0"]
[ECO "B86"]
[WhiteElo "1973"]
[BlackElo "1879"]
[Annotator "NA"]
[PlyCount "61"]
[EventType "team-tourn"]
[EventCountry "TUR"]
[SourceTitle "playchess.com"]
[Source "ChessBase"]
[SourceQuality "1"]
[TimeControl "5400+30"]

1. e4 {[%emt 0:00:30]} c5 {[%emt 0:01:00]} 2. Nf3 {[%emt 0:00:30]} d6 {[%emt 0:00:00]} 3. d4 {[%emt 0:00:00]} cxd4 {[%emt 0:00:00]} 4. Nxd4 {[%emt 0:00:00]} Nf6 {[%emt 0:00:30]} 5. Nc3 {[%emt 0:00:30]} a6 {[%emt 0:00:30]} 6. Bc4 {[%emt 0:00:30]} e6 {[%emt 0:00:30]} 7. Bb3 {[%emt 0:00:00]} Nbd7 {[%emt 0:00:00]} 8. Bg5 {[%emt 0:00:00]} Nc5 {[%emt 0:07:00]} 9. f3 {[%emt 0:02:30]} b5 {[%emt 0:00:30]} 10. Qd2 {[%emt 0:02:30]} Bb7 {[%emt 0:00:30]} 11. O-O-O {[%emt 0:01:30]} Qc7 {[%emt 0:00:30]} 12. Kb1 {[%emt 0:01:30]} O-O-O {[%emt 0:06:30]} 13. Bh4 {[%emt 0:11:30]} Be7 {[%emt 0:07:30]} 14. Bg3 {[%emt 0:00:30]} Qb6 {[%emt 0:03:30]} 15. Rhe1 {[%emt 0:03:30]} Nfd7 {[%emt 0:05:30]} 16. Re3 {[%emt 0:27:30]} g5 {[%emt 0:08:30]} 17. Bf2 {[%emt 0:02:30]} Ne5 {[%emt 0:02:30]} 18. Qe2 {[%emt 0:00:30]} Rhg8 {[%emt 0:09:30]} 19. g3 {[%emt 0:03:30]} Nc6 {[%emt 0:07:30]} 20. Nxc6 {[%emt 0:06:30]} Qxc6 {[%emt 0:03:30]} 21. Bd5 {[%emt 0:00:30]} Qc7 {[%emt 0:03:30]} 22. Bxb7+ {[%emt 0:00:30]} Kxb7 {[%emt 0:00:30]} 23. Rd4 {[%emt 0:07:30]} Qc6 {[%emt 0:20:56]} 24. b4 {[%emt 0:04:30]} e5 {[%emt 0:07:11]} 25. Rd1 {[%emt 0:03:30]} Ne6 {[%emt 0:00:05]} 26. Nd5 {[%emt 0:00:30]} Qd7 {[%emt 0:02:06]} 27. Rc3 {[%emt 0:00:33]} Rc8 {[%emt 0:01:19]} 28. Qe3 {[%emt 0:02:23]} Nd4 {[%emt 0:01:19]} 29. Rxd4 {[%emt 0:00:18]} exd4 {[%emt 0:01:38]} 30. Qxd4 {[%emt 0:00:30]} Rxc3 {[%emt 0:00:30]} 31. Qa7+ {[%emt 0:00:00]} 1-0

[Event "2nd Turkish League 2017"]
[Site "Konya"]
[Date "2017.07.18"]
[Round "3"]
[White "Gazioglu, Halit"]
[Black "Buker, Muhittin"]
[Result "0-1"]
[ECO "E38"]
[WhiteElo "1922"]
[BlackElo "2006"]
[Annotator "NA"]
[PlyCount "67"]
[EventType "team-tourn"]
[EventCountry "TUR"]
[SourceTitle "playchess.com"]
[Source "ChessBase"]
[SourceQuality "1"]
[TimeControl "5400+30"]

1. d4 {[%emt 0:00:30]} Nf6 {[%emt 0:01:00]} 2. c4 {[%emt 0:00:30]} e6 {[%emt 0:00:30]} 3. Nc3 {[%emt 0:00:30]} Bb4 {[%emt 0:00:00]} 4. Qc2 {[%emt 0:00:00]} c5 {[%emt 0:00:00]} 5. e3 {[%emt 0:04:00]} O-O {[%emt 0:01:30]} 6. Nf3 {[%emt 0:00:30]} Nc6 {[%emt 0:00:30]} 7. Bd3 {[%emt 0:00:30]} d5 {[%emt 0:01:30]} 8. dxc5 {[%emt 0:04:30]} e5 {[%emt 0:11:30]} 9. cxd5 {[%emt 0:02:30]} Qxd5 {[%emt 0:00:30]} 10. Bd2 {[%emt 0:19:30]} Bxc3 {[%emt 0:01:30]} 11. Qxc3 {[%emt 0:00:30]} Be6 {[%emt 0:08:30]} 12. Bc2 {[%emt 0:02:30]} e4 {[%emt 0:01:30]} 13. Nd4 {[%emt 0:01:30]} Qh5 {[%emt 0:11:30]} 14. Nxc6 {[%emt 0:02:30]} bxc6 {[%emt 0:00:30]} 15. Bd1 {[%emt 0:18:30]} Qg5 {[%emt 0:04:30]} 16. Rg1 {[%emt 0:03:30]} Rfd8 {[%emt 0:02:30]} 17. Be2 {[%emt 0:00:00]} Rd5 {[%emt 0:00:30]} 18. b4 {[%emt 0:01:00]} Ng4 {[%emt 0:03:30]} 19. Qc2 {[%emt 0:07:30]} Nxf2 {[%emt 0:00:30]} 20. Kxf2 {[%emt 0:01:30]} Qf6+ {[%emt 0:01:30]} 21. Bf3 {[%emt 0:00:30]} exf3 {[%emt 0:01:30]} 22. gxf3 {[%emt 0:00:30]} Rh5 {[%emt 0:13:30]} 23. Qc3 {[%emt 0:08:59]} Rxh2+ {[%emt 0:01:30]} 24. Ke1 {[%emt 0:06:04]} Qh4+ {[%emt 0:00:30]} 25. Kd1 {[%emt 0:00:30]} g6 {[%emt 0:00:00]} 26. Be1 {[%emt 0:06:09]} Rd8+ {[%emt 0:02:00]} 27. Kc1 {[%emt 0:00:06]} Qh5 {[%emt 0:00:30]} 28. Bg3 {[%emt 0:03:38]} Re2 {[%emt 0:01:30]} 29. Qf6 {[%emt 0:00:17]} Qd5 {[%emt 0:03:30]} 30. Qc3 {[%emt 0:03:21]} Qxf3 {[%emt 0:00:30]} 31. Bf4 {[%emt 0:01:46]} Bf5 {[%emt 0:00:30]} 32. Qf6 {[%emt 0:00:55]} Rc2+ {[%emt 0:01:30]} 33. Kb1 {[%emt 0:00:48]} Rh2+ {[%emt 0:00:30]} 34. Kc1 {[%emt 0:00:06]} 0-1

[Event "2nd Turkish League 2017"]
[Site "Konya"]
[Date "2017.07.18"]
[Round "3"]
[White "Aktas, Ilker"]
[Black "Seyhanoglu, Deniz"]
[Result "0-1"]
[ECO "B43"]
[WhiteElo "1905"]
[BlackElo "2049"]
[Annotator "NA"]
[PlyCount "70"]
[EventType "team-tourn"]
[EventCountry "TUR"]
[SourceTitle "playchess.com"]
[Source "ChessBase"]
[SourceQuality "1"]
[TimeControl "5400+30"]

1. e4 {[%emt 0:00:30]} c5 {[%emt 0:01:00]} 2. Nf3 {[%emt 0:00:30]} e6 {[%emt 0:00:00]} 3. d4 {[%emt 0:00:00]} cxd4 {[%emt 0:00:00]} 4. Nxd4 {[%emt 0:00:00]} a6 {[%emt 0:00:00]} 5. Nc3 {[%emt 0:00:30]} b5 {[%emt 0:00:00]} 6. Bd3 {[%emt 0:00:30]} Bb7 {[%emt 0:00:30]} 7. O-O {[%emt 0:01:30]} d6 {[%emt 0:00:30]} 8. Qe2 {[%emt 0:01:30]} Nd7 {[%emt 0:01:30]} 9. Kh1 {[%emt 0:02:30]} Ngf6 {[%emt 0:00:30]} 10. Bg5 {[%emt 0:01:30]} Be7 {[%emt 0:02:30]} 11. f4 {[%emt 0:01:30]} Qb6 {[%emt 0:07:30]} 12. Nf3 {[%emt 0:02:30]} b4 {[%emt 0:03:30]} 13. Nd1 {[%emt 0:01:30]} Nc5 {[%emt 0:21:30]} 14. Nf2 {[%emt 0:05:30]} Nxd3 {[%emt 0:07:30]} 15. cxd3 {[%emt 0:00:30]} O-O {[%emt 0:00:30]} 16. Bxf6 {[%emt 0:09:30]} Bxf6 {[%emt 0:01:30]} 17. Ng4 {[%emt 0:01:30]} Be7 {[%emt 0:00:30]} 18. Ne3 {[%emt 0:08:30]} Qb5 {[%emt 0:06:30]} 19. f5 {[%emt 0:09:30]} Bxe4 {[%emt 0:03:30]} 20. Nc4 {[%emt 0:04:30]} d5 {[%emt 0:13:30]} 21. Nce5 {[%emt 0:08:30]} Bf6 {[%emt 0:08:30]} 22. Rad1 {[%emt 0:07:30]} Bxe5 {[%emt 0:03:00]} 23. Nxe5 {[%emt 0:00:30]} Bxf5 {[%emt 0:00:11]} 24. Rf4 {[%emt 0:03:30]} Rae8 {[%emt 0:02:53]} 25. h4 {[%emt 0:02:30]} f6 {[%emt 0:00:56]} 26. Nf3 {[%emt 0:01:30]} Bg6 {[%emt 0:01:40]} 27. Nd4 {[%emt 0:02:30]} Qb6 {[%emt 0:00:48]} 28. Nc2 {[%emt 0:04:33]} a5 {[%emt 0:00:02]} 29. h5 {[%emt 0:00:44]} Qc7 {[%emt 0:01:29]} 30. Rf2 {[%emt 0:00:32]} Bf7 {[%emt 0:00:49]} 31. Qg4 {[%emt 0:01:06]} Qe5 {[%emt 0:01:02]} 32. h6 {[%emt 0:00:55]} Qh5+ {[%emt 0:00:25]} 33. Qxh5 {[%emt 0:00:46]} Bxh5 {[%emt 0:00:02]} 34. hxg7 {[%emt 0:01:36]} Kxg7 {[%emt 0:00:51]} 35. Nd4 {[%emt 0:00:46]} Bxd1 {[%emt 0:00:38]} 0-1

[Event "2nd Turkish League 2017"]
[Site "Konya"]
[Date "2017.07.18"]
[Round "3"]
[White "Isik, Recep"]
[Black "Kerem, Halil Ozgun"]
[Result "0-1"]
[ECO "B51"]
[WhiteElo "1895"]
[BlackElo "2074"]
[Annotator "NA"]
[PlyCount "75"]
[EventType "team-tourn"]
[EventCountry "TUR"]
[SourceTitle "playchess.com"]
[Source "ChessBase"]
[SourceQuality "1"]
[TimeControl "5400+30"]

1. e4 {[%emt 0:00:30]} c5 {[%emt 0:01:00]} 2. Nf3 {[%emt 0:00:30]} d6 {[%emt 0:02:30]} 3. Bb5+ {[%emt 0:03:30]} Nd7 {[%emt 0:00:00]} 4. c4 {[%emt 0:01:30]} Ngf6 {[%emt 0:00:00]} 5. Nc3 {[%emt 0:00:30]} e6 {[%emt 0:00:30]} 6. O-O {[%emt 0:00:00]} Be7 {[%emt 0:00:30]} 7. d4 {[%emt 0:00:00]} cxd4 {[%emt 0:00:00]} 8. Nxd4 {[%emt 0:00:30]} O-O {[%emt 0:00:00]} 9. Bxd7 {[%emt 0:01:30]} Bxd7 {[%emt 0:00:30]} 10. b3 {[%emt 0:02:30]} a6 {[%emt 0:14:30]} 11. Qe2 {[%emt 0:04:30]} Qa5 {[%emt 0:05:30]} 12. Bb2 {[%emt 0:04:30]} Rfd8 {[%emt 0:14:30]} 13. Kh1 {[%emt 0:03:30]} Qh5 {[%emt 0:01:30]} 14. f3 {[%emt 0:18:30]} Be8 {[%emt 0:02:30]} 15. Rad1 {[%emt 0:31:30]} Rab8 {[%emt 0:08:30]} 16. a4 {[%emt 0:00:30]} Nd7 {[%emt 0:02:30]} 17. Qe3 {[%emt 0:14:10]} Nc5 {[%emt 0:02:30]} 18. f4 {[%emt 0:03:39]} Bf6 {[%emt 0:00:30]} 19. Nce2 {[%emt 0:06:31]} Qh6 {[%emt 0:20:30]} 20. Rf3 {[%emt 0:00:46]} b5 {[%emt 0:01:30]} 21. axb5 {[%emt 0:00:20]} axb5 {[%emt 0:00:00]} 22. b4 {[%emt 0:00:38]} Na4 {[%emt 0:01:00]} 23. Rh3 {[%emt 0:00:13]} Qg6 {[%emt 0:00:30]} 24. Rg3 {[%emt 0:00:12]} Nxb2 {[%emt 0:00:30]} 25. Rxg6 {[%emt 0:00:30]} Nxd1 {[%emt 0:00:30]} 26. Qg1 {[%emt 0:01:13]} hxg6 {[%emt 0:00:30]} 27. Qxd1 {[%emt 0:00:02]} bxc4 {[%emt 0:00:00]} 28. Qd2 {[%emt 0:01:10]} d5 {[%emt 0:02:00]} 29. e5 {[%emt 0:00:30]} Be7 {[%emt 0:00:30]} 30. Nc2 {[%emt 0:00:15]} Rb7 {[%emt 0:00:30]} 31. Nc1 {[%emt 0:00:47]} Rdb8 {[%emt 0:01:58]} 32. Na2 {[%emt 0:00:30]} Ra8 {[%emt 0:00:00]} 33. Nc1 {[%emt 0:00:19]} Ra4 {[%emt 0:00:30]} 34. g4 {[%emt 0:00:00]} Bxb4 {[%emt 0:00:33]} 35. Qd4 {[%emt 0:00:48]} Bf8 {[%emt 0:00:51]} 36. Kg2 {[%emt 0:00:43]} c3 {[%emt 0:00:57]} 37. Qxc3 {[%emt 0:00:39]} Rc4 {[%emt 0:00:17]} 38. Qd2 {[%emt 0:01:02]} 0-1